Workbook

Sheet Start
B1: OVER DEZE SJABLOON
B2: Gebruik deze werkmap om de onkosten en inkomsten van een evenement bij te houden.
B3: Voer de naam van het evenement in en voer alle gegevens in op de werkbladen Onkosten en Inkomsten.
B4: De totale onkosten en totale inkomsten worden automatisch berekend.
B5: De winst-en-verliesrekening en de bijbehorende grafiek worden automatisch bijgewerkt op het werkblad Overzicht.
B6: Opmerking:
B7: Kolom A van elk werkblad bevat aanvullende instructies. Deze tekst is opzettelijk verborgen. Als u tekst wilt verwijderen, selecteert u kolom A en drukt u op Verwijderen. Als u de tekst zichtbaar wilt maken, selecteert u kolom A en wijzigt u de tekenkleur.
B8: Als u meer wilt weten over tabellen, drukt u in een tabel op Shift en F10 en selecteert u de optie Tabel en vervolgens Alternatieve tekst.

Sheet Onkosten
A1: Voer de geschat en werkelijk onkosten voor elke categorie in in de betreffende tabellen op dit werkblad. De totale onkosten worden automatisch berekend. Cellen in deze kolom bevatten handige instructies voor het gebruik van dit werkblad. Druk op de pijl-omlaag om aan de slag te gaan.
A2: Voer de naam van evenement in in de cel rechts om deze op alle werkbladen automatisch bij te werken. | B2: Budget van evenement voor Naam van evenement
A3: Het label Onkosten staat in cel G3. | G3: Onkosten
A4: Het label Geschat staat in cel G4 en het label Werkelijk in cel H4. | G4: Geschat | H4: Werkelijk
A5: Het label Totale onkosten staat in de cel rechts. De geschat totale onkosten worden automatisch berekend in cel G5. De werkelijk totale onkosten en de gegevensbalk met de werkelijk totale onkosten worden automatisch bijgewerkt in cel H5. De volgende aanwijzing staat in cel A7. | B5: Totale onkosten | G5: =SUM(C12,C20,C26,C33,G12,G20,G25) -> € 1,145.00 | H5: =SUM(D12,D20,D26,D33,H12,H20,H25) -> € 395.00
A7: Voer de onkosten voor de locatie in in de tabel die in de cel rechts begint, en de onkosten voor hapjes en drankjes in de tabel die in cel F7 begint. De volgende aanwijzing staat in cel A14. | B7: Locatie | C7: Geschat | D7: Werkelijk | F7: Hapjes en drankjes | G7: Geschat | H7: Werkelijk
B8: Kamer- en zaalkosten | C8: € 500.00 | D8: € 250.00 | F8: Eten en drinken
B9: Personeel op locatie | C9: € 400.00 | D9: € 50.00 | F9: Drinken
B10: Apparatuur | F10: Linnengoed
B11: Tafels en stoelen | F11: Personeel en fooien
B12: Totaal | C12: =SUBTOTAL(109,OnkostenVoorDeLocatie[Geschat]) -> € 900.00 | D12: =SUBTOTAL(109,OnkostenVoorDeLocatie[Werkelijk]) -> € 300.00 | F12: Totaal | G12: =SUBTOTAL(109,OnkostenVoorHapjesEnDrankjes[Geschat]) -> € 0.00 | H12: =SUBTOTAL(109,OnkostenVoorHapjesEnDrankjes[Werkelijk]) -> € 0.00
A14: Voer de onkosten voor versieringen in in de tabel die in de cel rechts begint, en de onkosten voor het programma in de tabel die in cel F14 begint. De volgende aanwijzing staat in cel A22. | B14: Versieringen | C14: Geschat | D14: Werkelijk | F14: Programma | G14: Geschat | H14: Werkelijk
B15: Bloemen | C15: € 200.00 | D15: € 50.00 | F15: Artiesten
B16: Kaarsen | F16: Sprekers
B17: Verlichting | F17: Reis
B18: Ballonnen | F18: Hotel
B19: Papier | F19: Anders
B20: Totaal | C20: =SUBTOTAL(109,OnkostenVoorVersieringen[Geschat]) -> € 200.00 | D20: =SUBTOTAL(109,OnkostenVoorVersieringen[Werkelijk]) -> € 50.00 | F20: Totaal | G20: =SUBTOTAL(109,OnkostenVoorHetProgramma[Geschat]) -> € 0.00 | H20: =SUBTOTAL(109,OnkostenVoorHetProgramma[Werkelijk]) -> € 0.00
A22: Voer de onkosten voor Publiciteit in in de tabel die in de cel rechts begint, en de onkosten voor prijzen in de tabel die in cel F22 begint. De volgende aanwijzing staat in cel A28. | B22: Publiciteit | C22: Geschat | D22: Werkelijk | F22: Prijzen | G22: Geschat | H22: Werkelijk
B23: Grafisch ontwerp | C23: € 45.00 | D23: € 45.00 | F23: Lintjes/medailles/trofeeën
B24: Kopiëren/drukken | F24: Cadeaus
B25: Portokosten | F25: Totaal | G25: =SUBTOTAL(109,OnkostenVoorPrijzen[Geschat]) -> € 0.00 | H25: =SUBTOTAL(109,OnkostenVoorPrijzen[Werkelijk]) -> € 0.00
B26: Totaal | C26: =SUBTOTAL(109,OnkostenVoorPubliciteit[Geschat]) -> € 45.00 | D26: =SUBTOTAL(109,OnkostenVoorPubliciteit[Werkelijk]) -> € 45.00
A28: Voer Diversen onkosten in in de tabel die in de cel rechts begint. | B28: Diversen | C28: Geschat | D28: Werkelijk
B29: Telefoon
B30: Vervoer
B31: Kantoorbenodigdheden
B32: Faxkosten
B33: Totaal | C33: =SUBTOTAL(109,DiversenOnkosten[Geschat]) -> € 0.00 | D33: =SUBTOTAL(109,DiversenOnkosten[Werkelijk]) -> € 0.00

Sheet Inkomsten
A1: Voer de geschat en werkelijk inkomsten voor elke categorie in in de desbetreffende tabellen op dit werkblad. Totale inkomsten worden automatisch berekend. Cellen in deze kolom bevatten handige instructies voor het gebruik van dit werkblad. Druk op de pijl-omlaag om aan de slag te gaan.
A2: De naam van het evenement wordt automatisch bijgewerkt in de cel rechts. | B2: =Onkosten!B2 -> Budget van evenement voor Naam van evenement
A3: Het label Inkomsten staat in cel F3. | F3: Inkomsten
A4: Het label Geschat staat in cel F4 en het label Werkelijk in cel G4. | F4: Geschat | G4: Werkelijk
A5: Het label Totale inkomsten staat in de cel rechts. De geschat totaal inkomsten worden automatisch berekend in cel F5. De werkelijk totaal inkomsten en de gegevensbalk met de werkelijke totaal inkomsten worden automatisch bijgewerkt in cel G5. | B5: Totale inkomsten | F5: =SUM(Entreegeld[[#Totals],[Geschat totaal]],AdvertentiesInProgrammaboekje[[#Totals],[Geschat totaal]],ExposantenEnVerkopers[[#Totals],[Geschat totaal]],VerkoopVanArtikelen[[#Totals],[Geschat totaal]]) -> € 1,936.00 | G5: =SUM(Entreegeld[[#Totals],[Werkelijk totaal]],AdvertentiesInProgrammaboekje[[#Totals],[Werkelijk totaal]],ExposantenEnVerkopers[[#Totals],[Werkelijk totaal]],VerkoopVanArtikelen[[#Totals],[Werkelijk totaal]]) -> € 1,831.00
A6: Het label Toegangsbewijzen staat in de cel rechts. | B6: Toegangsbewijzen
A7: Voer het geschat en werkelijk aantal verkochte toegangsbewijzen en de bijbehorende prijzen in in de tabel die in de cel rechts begint. De geschat en werkelijk inkomsten uit verkochte toegangsbewijzen worden automatisch berekend. De volgende aanwijzing staat in cel A12. | B7: Geschat | C7: Werkelijk | D7: Type | E7: Prijs | F7: Geschat totaal | G7: Werkelijk totaal
B8: 300 | C8: 278 | D8: Volwassenen à | E8: € 5.00 | F8: =B8*E8 -> € 1,500.00 | G8: =C8*E8 -> € 1,390.00
B9: 197 | C9: 195 | D9: Kinderen à | E9: € 2.00 | F9: =B9*E9 -> € 394.00 | G9: =C9*E9 -> € 390.00
B10: 42 | C10: 51 | D10: Andere à | E10: € 1.00 | F10: € 42.00 | G10: € 51.00
F11: =SUBTOTAL(109,Entreegeld[Geschat totaal]) -> € 1,936.00 | G11: =SUBTOTAL(109,Entreegeld[Werkelijk totaal]) -> € 1,831.00
A12: Het label Advertenties in programmaboekje staat in de cel rechts. | B12: Advertenties in programmaboekje
A13: Voer het geschat en werkelijk aantal verkochte advertenties in het programmaboekje en de bijbehorende advertentietarieven in in de tabel die in de cel rechts begint. De geschat en werkelijk inkomsten uit advertenties worden automatisch berekend. De volgende aanwijzing staat in cel A18. | B13: Geschat | C13: Werkelijk | D13: Type | E13: Prijs | F13: Geschat totaal | G13: Werkelijk totaal
D14: Volledige pagina à | F14: =B14*E14 -> € 0.00 | G14: =C14*E14 -> € 0.00
D15: Halve pagina à | F15: =B15*E15 -> € 0.00 | G15: =C15*E15 -> € 0.00
D16: Kwart pagina à | F16: € 0.00 | G16: € 0.00
F17: =SUBTOTAL(109,AdvertentiesInProgrammaboekje[Geschat totaal]) -> € 0.00 | G17: =SUBTOTAL(109,AdvertentiesInProgrammaboekje[Werkelijk totaal]) -> € 0.00
A18: Het label Exposanten of verkopers staat in de cel rechts. | B18: Exposanten/verkopers
A19: Voer het geschat en werkelijk aantal exposanten en verkopers en de bijbehorende standprijzen in in de tabel die in de cel rechts begint. De geschat en werkelijk inkomsten worden automatisch berekend. De volgende aanwijzing staat in cel A24. | B19: Geschat | C19: Werkelijk | D19: Type | E19: Prijs | F19: Geschat totaal | G19: Werkelijk totaal
D20: Grote stands à | F20: =B20*E20 -> € 0.00 | G20: =C20*E20 -> € 0.00
D21: Middelgrote stands à | F21: =B21*E21 -> € 0.00 | G21: =C21*E21 -> € 0.00
D22: Kleine stands à | F22: € 0.00 | G22: € 0.00
F23: =SUBTOTAL(109,ExposantenEnVerkopers[Geschat totaal]) -> € 0.00 | G23: =SUBTOTAL(109,ExposantenEnVerkopers[Werkelijk totaal]) -> € 0.00
A24: Het label Verkoop van artikelen staat in de cel rechts. | B24: Verkoop van artikelen
A25: Voer het geschat en werkelijk aantal verkochte artikelen en de bijbehorende artikelprijzen in in de tabel die in de cel rechts begint. De geschat en werkelijk inkomsten worden automatisch berekend. | B25: Geschat | C25: Werkelijk | D25: Type | E25: Prijs | F25: Geschat totaal | G25: Werkelijk totaal
D26: Items à | F26: =B26*E26 -> € 0.00 | G26: =C26*E26 -> € 0.00
D27: Items à | F27: =B27*E27 -> € 0.00 | G27: =C27*E27 -> € 0.00
D28: Items à | F28: € 0.00 | G28: € 0.00
D29: Items à | F29: € 0.00 | G29: € 0.00
F30: =SUBTOTAL(109,VerkoopVanArtikelen[Geschat totaal]) -> € 0.00 | G30: =SUBTOTAL(109,VerkoopVanArtikelen[Werkelijk totaal]) -> € 0.00

Sheet Overzicht
A1: De winst-en-verliesrekening en de bijbehorende grafiek waarin de totale uitgaven onkosten worden weergegeven, worden automatisch bijgewerkt op dit werkblad. Cellen in deze kolom bevatten handige instructies voor het gebruik van dit werkblad. Druk op de pijl-omlaag om aan de slag te gaan.
A2: De naam van evenement wordt automatisch bijgewerkt in de cel rechts. | B2: =Onkosten!B2 -> Budget van evenement voor Naam van evenement
A3: Het label Winst-en-verliesrekening staat in cel C3. De volgende aanwijzing staat in cel A5. | C3: Winst-en-verliesrekening
A5: De tabel met totaal rechts wordt automatisch bijgewerkt. De volgende aanwijzing staat in cel A9. | B5: Totaal | C5: Geschat | D5: Werkelijk
B6: Totale inkomsten | C6: =Inkomsten!F5 -> € 1,936.00 | D6: =Inkomsten!G5 -> € 1,831.00
B7: Totale onkosten | C7: =Onkosten!G5 -> € 1,145.00 | D7: =Onkosten!H5 -> € 395.00
B8: Totale winst (of verlies) | C8: =C6-C7 -> € 791.00 | D8: =D6-D7 -> € 1,436.00
A9: De cel rechts bevat een gegroepeerd kolomdiagram met de geschat versus werkelijk totale inkomsten en onkosten. | B9: Deze cel bevat een gegroepeerd kolomdiagram met de geschat versus werkelijk totale inkomsten en onkosten.
